{"text_format":"1","workbook":"xlsx","n_sheets":6,"sheets":["BD","Reestr_Документ","TTN","Helper","Лист3","Лист2"],"not_rendered":{"charts":0,"images":1,"macros":1,"external_links":2,"defined_names":13,"comments":0,"pivot_tables":0},"unopened":[],"bounds":{"document_bytes":16777216,"sheet_cells":100000,"rows_first":2000,"rows_last":500,"rows_between":2000,"halvings":0,"cell_chars":16384,"cell_head_chars":4096},"cells_cut":0,"cells_raw":0,"read":"whole","date_system":"1900"}

{"sheet":"BD","index":0,"n_rows":57,"n_cols":26,"rows_kept":57,"cut":false,"hidden":false,"merged":[]}
["Дата ТН","  ТН","Наименование товара","кол-во, м3","Водитель","ГРЗ","Автомобиль","Проект","Примечание","Файл","страница","Контроль","счет","Дата","Цена за ЕД","счф","счф дата","Перевозчик","Карьер","Карьер Док ","Карьер док Дата","Карьер док к-во","Материал","КартьерФайл","Карьерстраница","№+ДАТА_УПД"]
["2023-03-04",267,"Песок карьерный",18,"Лосенков","е801тв198","МЕРСЕДЕС","ШК5",null,"INS_04-03-23_1",1,null,null,null,310,345,"2023-03-04","Пер-пл","Новосаратовка",null,null,null,"ДК ГОРИЗОНТ ООО",null,null,{"$f":"CONCATENATE(BD[[#This Row],[счф]],\" от \",TEXT(BD[[#This Row],[счф дата]], \"дд.ММ.гггг\"))","v":"345 от 04.03.2023"}]
["2023-03-04",24832,"Песок карьерный",18,"Лосенков","е801тв198","МЕРСЕДЕС","ШК5",null,"INS_04-03-23_1",2,null,null,null,310,345,"2023-03-04","Пер-пл","Новосаратовка",null,null,null,"ДК ГОРИЗОНТ ООО",null,null,{"$f":"CONCATENATE(BD[[#This Row],[счф]],\" от \",TEXT(BD[[#This Row],[счф дата]], \"дд.ММ.гггг\"))","v":"345 от 04.03.2023"}]
["2023-03-04",24862,"Песок карьерный",18,"Лосенков","е801тв198","МЕРСЕДЕС","ШК5",null,"INS_04-03-23_1",3,null,null,null,310,345,"2023-03-04","Пер-пл","Новосаратовка",null,null,null,"ДК ГОРИЗОНТ ООО",null,null,{"$f":"CONCATENATE(BD[[#This Row],[счф]],\" от \",TEXT(BD[[#This Row],[счф дата]], \"дд.ММ.гггг\"))","v":"345 от 04.03.2023"}]
["2023-03-04",24823,"Песок карьерный",18,"Лосенков","е801тв198","МЕРСЕДЕС","ШК5",null,"INS_04-03-23_1",4,null,null,null,310,345,"2023-03-04","Пер-пл","Новосаратовка",null,null,null,"ДК ГОРИЗОНТ ООО",null,null,{"$f":"CONCATENATE(BD[[#This Row],[счф]],\" от \",TEXT(BD[[#This Row],[счф дата]], \"дд.ММ.гггг\"))","v":"345 от 04.03.2023"}]
["2023-03-04",24825,"Песок карьерный",18,"Андреев","к206ое198","МЕРСЕДЕС","ШК5",null,"INS_04-03-23_1",5,null,null,null,310,345,"2023-03-04","Пер-пл","Новосаратовка",null,null,null,"ДК ГОРИЗОНТ ООО",null,null,{"$f":"CONCATENATE(BD[[#This Row],[счф]],\" от \",TEXT(BD[[#This Row],[счф дата]], \"дд.ММ.гггг\"))","v":"345 от 04.03.2023"}]
["2023-03-04",24863,"Песок карьерный",18,"Андреев","к206ое198","МЕРСЕДЕС","ШК5",null,"INS_04-03-23_1",6,null,null,null,310,345,"2023-03-04","Пер-пл","Новосаратовка",null,null,null,"ДК ГОРИЗОНТ ООО",null,null,{"$f":"CONCATENATE(BD[[#This Row],[счф]],\" от \",TEXT(BD[[#This Row],[счф дата]], \"дд.ММ.гггг\"))","v":"345 от 04.03.2023"}]
["2023-03-04",24865,"Песок карьерный",18,"Андреев","к206ое198","МЕРСЕДЕС","ШК5",null,"INS_04-03-23_1",7,null,null,null,310,345,"2023-03-04","Пер-пл","Новосаратовка",null,null,null,"ДК ГОРИЗОНТ ООО",null,null,{"$f":"CONCATENATE(BD[[#This Row],[счф]],\" от \",TEXT(BD[[#This Row],[счф дата]], \"дд.ММ.гггг\"))","v":"345 от 04.03.2023"}]
["2023-03-04",264,"Песок карьерный",18,"Андреев","к206ое198","МЕРСЕДЕС","ШК5",null,"INS_04-03-23_1",8,null,null,null,310,345,"2023-03-04","Пер-пл","Новосаратовка",null,null,null,"ДК ГОРИЗОНТ ООО",null,null,{"$f":"CONCATENATE(BD[[#This Row],[счф]],\" от \",TEXT(BD[[#This Row],[счф дата]], \"дд.ММ.гггг\"))","v":"345 от 04.03.2023"}]
["2023-03-04",24868,"Песок карьерный",18,"Титаев","к639тх198","камаз","ШК5",null,"INS_04-03-23_1",9,null,null,null,310,345,"2023-03-04","Пер-пл","Новосаратовка",null,null,null,"ДК ГОРИЗОНТ ООО",null,null,{"$f":"CONCATENATE(BD[[#This Row],[счф]],\" от \",TEXT(BD[[#This Row],[счф дата]], \"дд.ММ.гггг\"))","v":"345 от 04.03.2023"}]
["2023-03-05",24827,"Песок карьерный",18,"Ротарь","к179кт198","МЕРСЕДЕС","ШК5",null,"INS_05-03-23_4",7,null,null,null,310,347,"2023-03-05","Пер-пл","Новосаратовка",null,null,null,"ДК ГОРИЗОНТ ООО",null,null,{"$f":"CONCATENATE(BD[[#This Row],[счф]],\" от \",TEXT(BD[[#This Row],[счф дата]], \"дд.ММ.гггг\"))","v":"347 от 05.03.2023"}]
["2023-03-05",24999,"Песок карьерный",18,"Ротарь","к179кт198","МЕРСЕДЕС","ШК5",null,"INS_05-03-23_4",8,null,null,null,310,347,"2023-03-05","Пер-пл","Новосаратовка",null,null,null,"ДК ГОРИЗОНТ ООО",null,null,{"$f":"CONCATENATE(BD[[#This Row],[счф]],\" от \",TEXT(BD[[#This Row],[счф дата]], \"дд.ММ.гггг\"))","v":"347 от 05.03.2023"}]
["2023-03-05",24991,"Песок карьерный",18,"Акбаров","х312хн178","вольво","ШК5",null,"INS_05-03-23_4",9,null,null,null,310,347,"2023-03-05","Пер-пл","Новосаратовка",null,null,null,"ДК ГОРИЗОНТ ООО",null,null,{"$f":"CONCATENATE(BD[[#This Row],[счф]],\" от \",TEXT(BD[[#This Row],[счф дата]], \"дд.ММ.гггг\"))","v":"347 от 05.03.2023"}]
["2023-03-05",12351,"Песок карьерный",18,"Акбаров","х312хн178","вольво","ШК5",null,"INS_05-03-23_4",10,null,null,null,310,347,"2023-03-05","Пер-пл","Новосаратовка",null,null,null,"ДК ГОРИЗОНТ ООО",null,null,{"$f":"CONCATENATE(BD[[#This Row],[счф]],\" от \",TEXT(BD[[#This Row],[счф дата]], \"дд.ММ.гггг\"))","v":"347 от 05.03.2023"}]
["2023-03-05",24834,"Песок карьерный",18,"Соловей","к206ое198","МЕРСЕДЕС","ШК5",null,"INS_05-03-23_5",1,null,null,null,310,347,"2023-03-05","Пер-пл","Новосаратовка",null,null,null,"ДК ГОРИЗОНТ ООО",null,null,{"$f":"CONCATENATE(BD[[#This Row],[счф]],\" от \",TEXT(BD[[#This Row],[счф дата]], \"дд.ММ.гггг\"))","v":"347 от 05.03.2023"}]
["2023-03-05",24864,"Песок карьерный",18,"Соловей","к206ое198","МЕРСЕДЕС","ШК5",null,"INS_05-03-23_5",2,null,null,null,310,347,"2023-03-05","Пер-пл","Новосаратовка",null,null,null,"ДК ГОРИЗОНТ ООО",null,null,{"$f":"CONCATENATE(BD[[#This Row],[счф]],\" от \",TEXT(BD[[#This Row],[счф дата]], \"дд.ММ.гггг\"))","v":"347 от 05.03.2023"}]
["2023-03-05",24992,"Песок карьерный",18,"Соловей","к206ое198","МЕРСЕДЕС","ШК5",null,"INS_05-03-23_5",3,null,null,null,310,347,"2023-03-05","Пер-пл","Новосаратовка",null,null,null,"ДК ГОРИЗОНТ ООО",null,null,{"$f":"CONCATENATE(BD[[#This Row],[счф]],\" от \",TEXT(BD[[#This Row],[счф дата]], \"дд.ММ.гггг\"))","v":"347 от 05.03.2023"}]
["2023-03-05",24956,"Песок карьерный",18,"Соловей","к206ое198","МЕРСЕДЕС","ШК5",null,"INS_05-03-23_5",4,null,null,null,310,347,"2023-03-05","Пер-пл","Новосаратовка",null,null,null,"ДК ГОРИЗОНТ ООО",null,null,{"$f":"CONCATENATE(BD[[#This Row],[счф]],\" от \",TEXT(BD[[#This Row],[счф дата]], \"дд.ММ.гггг\"))","v":"347 от 05.03.2023"}]
["2023-03-05",24854,"Песок карьерный",20,"Голобородько","к397тх198","МЕРСЕДЕС","ШК5",null,"INS_05-03-23_5",5,null,null,null,310,347,"2023-03-05","Пер-пл","Новосаратовка",null,null,null,"ДК ГОРИЗОНТ ООО",null,null,{"$f":"CONCATENATE(BD[[#This Row],[счф]],\" от \",TEXT(BD[[#This Row],[счф дата]], \"дд.ММ.гггг\"))","v":"347 от 05.03.2023"}]
["2023-03-05",24848,"Песок карьерный",20,"Голобородько","к397тх198","МЕРСЕДЕС","ШК5",null,"INS_05-03-23_5",6,null,null,null,310,347,"2023-03-05","Пер-пл","Новосаратовка",null,null,null,"ДК ГОРИЗОНТ ООО",null,null,{"$f":"CONCATENATE(BD[[#This Row],[счф]],\" от \",TEXT(BD[[#This Row],[счф дата]], \"дд.ММ.гггг\"))","v":"347 от 05.03.2023"}]
["2023-03-05",24855,"Песок карьерный",20,"Голобородько","к397тх198","МЕРСЕДЕС","ШК5",null,"INS_05-03-23_5",7,null,null,null,310,347,"2023-03-05","Пер-пл","Новосаратовка",null,null,null,"ДК ГОРИЗОНТ ООО",null,null,{"$f":"CONCATENATE(BD[[#This Row],[счф]],\" от \",TEXT(BD[[#This Row],[счф дата]], \"дд.ММ.гггг\"))","v":"347 от 05.03.2023"}]
["2023-03-05",24934,"Песок карьерный",20,"Славиогло","м738ср198","камаз","ШК5",null,"INS_05-03-23_5",8,null,null,null,310,347,"2023-03-05","Пер-пл","Новосаратовка",null,null,null,"ДК ГОРИЗОНТ ООО",null,null,{"$f":"CONCATENATE(BD[[#This Row],[счф]],\" от \",TEXT(BD[[#This Row],[счф дата]], \"дд.ММ.гггг\"))","v":"347 от 05.03.2023"}]
["2023-03-05",24932,"Песок карьерный",20,"Славиогло","м738ср198","камаз","ШК5",null,"INS_05-03-23_5",9,null,null,null,310,347,"2023-03-05","Пер-пл","Новосаратовка",null,null,null,"ДК ГОРИЗОНТ ООО",null,null,{"$f":"CONCATENATE(BD[[#This Row],[счф]],\" от \",TEXT(BD[[#This Row],[счф дата]], \"дд.ММ.гггг\"))","v":"347 от 05.03.2023"}]
["2023-03-05",24828,"Песок карьерный",20,"Славиогло","м738ср198","камаз","ШК5",null,"INS_05-03-23_5",10,null,null,null,310,347,"2023-03-05","Пер-пл","Новосаратовка",null,null,null,"ДК ГОРИЗОНТ ООО",null,null,{"$f":"CONCATENATE(BD[[#This Row],[счф]],\" от \",TEXT(BD[[#This Row],[счф дата]], \"дд.ММ.гггг\"))","v":"347 от 05.03.2023"}]
["2023-03-07",12357,"Песок карьерный",18,"Челак","м033кк198","камаз","ШК5",null,"INS_07-03-23_4",6,null,null,null,310,349,"2023-03-07","Пер-пл","Новосаратовка",null,null,null,"ДК ГОРИЗОНТ ООО",null,null,{"$f":"CONCATENATE(BD[[#This Row],[счф]],\" от \",TEXT(BD[[#This Row],[счф дата]], \"дд.ММ.гггг\"))","v":"349 от 07.03.2023"}]
["2023-03-07",12354,"Песок карьерный",18,"Челак","м033кк198","камаз","ШК5",null,"INS_07-03-23_4",7,null,null,null,310,349,"2023-03-07","Пер-пл","Новосаратовка",null,null,null,"ДК ГОРИЗОНТ ООО",null,null,{"$f":"CONCATENATE(BD[[#This Row],[счф]],\" от \",TEXT(BD[[#This Row],[счф дата]], \"дд.ММ.гггг\"))","v":"349 от 07.03.2023"}]
["2023-03-07",12362,"Песок карьерный",18,"Тонку","в252уу147","камаз","ШК5",null,"INS_07-03-23_4",8,null,null,null,310,349,"2023-03-07","Пер-пл","Новосаратовка",null,null,null,"ДК ГОРИЗОНТ ООО",null,null,{"$f":"CONCATENATE(BD[[#This Row],[счф]],\" от \",TEXT(BD[[#This Row],[счф дата]], \"дд.ММ.гггг\"))","v":"349 от 07.03.2023"}]
["2023-03-07",24381,"Песок карьерный",18,"Тонку","в252уу147","камаз","ШК5",null,"INS_07-03-23_4",9,null,null,null,310,349,"2023-03-07","Пер-пл","Новосаратовка",null,null,null,"ДК ГОРИЗОНТ ООО",null,null,{"$f":"CONCATENATE(BD[[#This Row],[счф]],\" от \",TEXT(BD[[#This Row],[счф дата]], \"дд.ММ.гггг\"))","v":"349 от 07.03.2023"}]
["2023-03-07",5781,"Песок карьерный",18,"Митител","р434кт72","вольво","ШК5",null,"INS_07-03-23_4",10,null,null,null,310,349,"2023-03-07","Пер-пл","Новосаратовка",null,null,null,"ДК ГОРИЗОНТ ООО",null,null,{"$f":"CONCATENATE(BD[[#This Row],[счф]],\" от \",TEXT(BD[[#This Row],[счф дата]], \"дд.ММ.гггг\"))","v":"349 от 07.03.2023"}]
["2023-03-07",5778,"Песок карьерный",18,"Митител","р434кт72","вольво","ШК5",null,"INS_07-03-23_5",1,null,null,null,310,349,"2023-03-07","Пер-пл","Новосаратовка",null,null,null,"ДК ГОРИЗОНТ ООО",null,null,{"$f":"CONCATENATE(BD[[#This Row],[счф]],\" от \",TEXT(BD[[#This Row],[счф дата]], \"дд.ММ.гггг\"))","v":"349 от 07.03.2023"}]
["2023-03-07",24406,"Песок карьерный",20,"Петров","м738ср198","камаз","ШК5",null,"INS_07-03-23_5",2,null,null,null,310,349,"2023-03-07","Пер-пл","Новосаратовка",null,null,null,"ДК ГОРИЗОНТ ООО",null,null,{"$f":"CONCATENATE(BD[[#This Row],[счф]],\" от \",TEXT(BD[[#This Row],[счф дата]], \"дд.ММ.гггг\"))","v":"349 от 07.03.2023"}]
["2023-03-07",24410,"Песок карьерный",20,"Петров","м738ср198","камаз","ШК5",null,"INS_07-03-23_5",3,null,null,null,310,349,"2023-03-07","Пер-пл","Новосаратовка",null,null,null,"ДК ГОРИЗОНТ ООО",null,null,{"$f":"CONCATENATE(BD[[#This Row],[счф]],\" от \",TEXT(BD[[#This Row],[счф дата]], \"дд.ММ.гггг\"))","v":"349 от 07.03.2023"}]
["2023-03-07",24386,"Песок карьерный",20,"Петров","м738ср198","камаз","ШК5",null,"INS_07-03-23_5",4,null,null,null,310,349,"2023-03-07","Пер-пл","Новосаратовка",null,null,null,"ДК ГОРИЗОНТ ООО",null,null,{"$f":"CONCATENATE(BD[[#This Row],[счф]],\" от \",TEXT(BD[[#This Row],[счф дата]], \"дд.ММ.гггг\"))","v":"349 от 07.03.2023"}]
["2023-03-07",5977,"Песок карьерный",20,"Беженарь","м913то198","камаз","ШК5",null,"INS_07-03-23_5",5,null,null,null,310,349,"2023-03-07","Пер-пл","Новосаратовка",null,null,null,"ДК ГОРИЗОНТ ООО",null,null,{"$f":"CONCATENATE(BD[[#This Row],[счф]],\" от \",TEXT(BD[[#This Row],[счф дата]], \"дд.ММ.гггг\"))","v":"349 от 07.03.2023"}]
["2023-03-07",5976,"Песок карьерный",20,"Беженарь","м913то198","камаз","ШК5",null,"INS_07-03-23_5",6,null,null,null,310,349,"2023-03-07","Пер-пл","Новосаратовка",null,null,null,"ДК ГОРИЗОНТ ООО",null,null,{"$f":"CONCATENATE(BD[[#This Row],[счф]],\" от \",TEXT(BD[[#This Row],[счф дата]], \"дд.ММ.гггг\"))","v":"349 от 07.03.2023"}]
["2023-03-07",5975,"Песок карьерный",20,"Беженарь","м913то198","камаз","ШК5",null,"INS_07-03-23_5",7,null,null,null,310,349,"2023-03-07","Пер-пл","Новосаратовка",null,null,null,"ДК ГОРИЗОНТ ООО",null,null,{"$f":"CONCATENATE(BD[[#This Row],[счф]],\" от \",TEXT(BD[[#This Row],[счф дата]], \"дд.ММ.гггг\"))","v":"349 от 07.03.2023"}]
["2023-03-07",5974,"Песок карьерный",20,"Беженарь","м913то198","камаз","ШК5",null,"INS_07-03-23_5",8,null,null,null,310,349,"2023-03-07","Пер-пл","Новосаратовка",null,null,null,"ДК ГОРИЗОНТ ООО",null,null,{"$f":"CONCATENATE(BD[[#This Row],[счф]],\" от \",TEXT(BD[[#This Row],[счф дата]], \"дд.ММ.гггг\"))","v":"349 от 07.03.2023"}]
["2023-03-07",11454,"Песок карьерный",20,"Макеев ","м566ех198","камаз","ШК5",null,"INS_07-03-23_5",9,null,null,null,310,349,"2023-03-07","Пер-пл","Новосаратовка",null,null,null,"ДК ГОРИЗОНТ ООО",null,null,{"$f":"CONCATENATE(BD[[#This Row],[счф]],\" от \",TEXT(BD[[#This Row],[счф дата]], \"дд.ММ.гггг\"))","v":"349 от 07.03.2023"}]
["2023-03-07",11455,"Песок карьерный",20,"Макеев ","м566ех198","камаз","ШК5",null,"INS_07-03-23_5",10,null,null,null,310,349,"2023-03-07","Пер-пл","Новосаратовка",null,null,null,"ДК ГОРИЗОНТ ООО",null,null,{"$f":"CONCATENATE(BD[[#This Row],[счф]],\" от \",TEXT(BD[[#This Row],[счф дата]], \"дд.ММ.гггг\"))","v":"349 от 07.03.2023"}]
["2023-03-07",2682,"Песок карьерный",20,"Макеев ","м566ех198","камаз","ШК5",null,"INS_07-03-23_6",1,null,null,null,310,349,"2023-03-07","Пер-пл","Новосаратовка",null,null,null,"ДК ГОРИЗОНТ ООО",null,null,{"$f":"CONCATENATE(BD[[#This Row],[счф]],\" от \",TEXT(BD[[#This Row],[счф дата]], \"дд.ММ.гггг\"))","v":"349 от 07.03.2023"}]
["2023-03-07",24920,"Песок карьерный",20,"Айдаров","м530ео198","камаз","ШК5",null,"INS_07-03-23_6",2,null,null,null,310,349,"2023-03-07","Пер-пл","Новосаратовка",null,null,null,"ДК ГОРИЗОНТ ООО",null,null,{"$f":"CONCATENATE(BD[[#This Row],[счф]],\" от \",TEXT(BD[[#This Row],[счф дата]], \"дд.ММ.гггг\"))","v":"349 от 07.03.2023"}]
["2023-03-07",24922,"Песок карьерный",20,"Айдаров","м530ео198","камаз","ШК5",null,"INS_07-03-23_6",3,null,null,null,310,349,"2023-03-07","Пер-пл","Новосаратовка",null,null,null,"ДК ГОРИЗОНТ ООО",null,null,{"$f":"CONCATENATE(BD[[#This Row],[счф]],\" от \",TEXT(BD[[#This Row],[счф дата]], \"дд.ММ.гггг\"))","v":"349 от 07.03.2023"}]
["2023-03-07",24921,"Песок карьерный",20,"Айдаров","м530ео198","камаз","ШК5",null,"INS_07-03-23_6",4,null,null,null,310,349,"2023-03-07","Пер-пл","Новосаратовка",null,null,null,"ДК ГОРИЗОНТ ООО",null,null,{"$f":"CONCATENATE(BD[[#This Row],[счф]],\" от \",TEXT(BD[[#This Row],[счф дата]], \"дд.ММ.гггг\"))","v":"349 от 07.03.2023"}]
["2023-03-07",24919,"Песок карьерный",20,"Новокщенов","м364ех198","камаз","ШК5",null,"INS_07-03-23_6",5,null,null,null,310,349,"2023-03-07","Пер-пл","Новосаратовка",null,null,null,"ДК ГОРИЗОНТ ООО",null,null,{"$f":"CONCATENATE(BD[[#This Row],[счф]],\" от \",TEXT(BD[[#This Row],[счф дата]], \"дд.ММ.гггг\"))","v":"349 от 07.03.2023"}]
["2023-03-07",5868,"Песок карьерный",20,"Новокщенов","м364ех198","камаз","ШК5",null,"INS_07-03-23_6",6,null,null,null,310,349,"2023-03-07","Пер-пл","Новосаратовка",null,null,null,"ДК ГОРИЗОНТ ООО",null,null,{"$f":"CONCATENATE(BD[[#This Row],[счф]],\" от \",TEXT(BD[[#This Row],[счф дата]], \"дд.ММ.гггг\"))","v":"349 от 07.03.2023"}]
["2023-03-07",5869,"Песок карьерный",20,"Новокщенов","м364ех198","камаз","ШК5",null,"INS_07-03-23_6",7,null,null,null,310,349,"2023-03-07","Пер-пл","Новосаратовка",null,null,null,"ДК ГОРИЗОНТ ООО",null,null,{"$f":"CONCATENATE(BD[[#This Row],[счф]],\" от \",TEXT(BD[[#This Row],[счф дата]], \"дд.ММ.гггг\"))","v":"349 от 07.03.2023"}]
["2023-03-07",24429,"Песок карьерный",20,"Голобородько","к397тх198","МЕРСЕДЕС","ШК5",null,"INS_07-03-23_6",8,null,null,null,310,349,"2023-03-07","Пер-пл","Новосаратовка",null,null,null,"ДК ГОРИЗОНТ ООО",null,null,{"$f":"CONCATENATE(BD[[#This Row],[счф]],\" от \",TEXT(BD[[#This Row],[счф дата]], \"дд.ММ.гггг\"))","v":"349 от 07.03.2023"}]
["2023-03-10",24013,"Песок карьерный",18,"Кубанычбек","в436вк147","скания","ШК5",null,"INS_10-03-23_4",6,null,null,null,310,352,"2023-03-10","Пер-пл","Новосаратовка",508,"2023-03-10",18,"ДК ГОРИЗОНТ ООО","Gorizont_10-03-2023_1",9,{"$f":"CONCATENATE(BD[[#This Row],[счф]],\" от \",TEXT(BD[[#This Row],[счф дата]], \"дд.ММ.гггг\"))","v":"352 от 10.03.2023"}]
["2023-03-10",24014,"Песок карьерный",18,"Акбаров","х312хн178","вольво","ШК5",null,"INS_10-03-23_4",7,null,null,null,310,352,"2023-03-10","Пер-пл","Новосаратовка",509,"2023-03-10",18,"ДК ГОРИЗОНТ ООО","Gorizont_10-03-2023_1",10,{"$f":"CONCATENATE(BD[[#This Row],[счф]],\" от \",TEXT(BD[[#This Row],[счф дата]], \"дд.ММ.гггг\"))","v":"352 от 10.03.2023"}]
["2023-03-10",24009,"Песок карьерный",18,"Акбаров","х312хн178","вольво","ШК5",null,"INS_10-03-23_4",8,null,null,null,310,352,"2023-03-10","Пер-пл","Новосаратовка",523,"2023-03-10",18,"ДК ГОРИЗОНТ ООО","Gorizont_10-03-2023_1",10,{"$f":"CONCATENATE(BD[[#This Row],[счф]],\" от \",TEXT(BD[[#This Row],[счф дата]], \"дд.ММ.гггг\"))","v":"352 от 10.03.2023"}]
["2023-03-10",24008,"Песок карьерный",18,"Акбаров","х312хн178","вольво","ШК5",null,"INS_10-03-23_4",9,null,null,null,310,352,"2023-03-10","Пер-пл","Новосаратовка",510,"2023-03-10",18,"ДК ГОРИЗОНТ ООО","Gorizont_10-03-2023_1",10,{"$f":"CONCATENATE(BD[[#This Row],[счф]],\" от \",TEXT(BD[[#This Row],[счф дата]], \"дд.ММ.гггг\"))","v":"352 от 10.03.2023"}]
["2023-03-10",12358,"Песок карьерный",18,"Акбаров","х312хн178","вольво","ШК5",null,"INS_10-03-23_4",10,null,null,null,310,352,"2023-03-10","Пер-пл","Новосаратовка",528,"2023-03-10",18,"ДК ГОРИЗОНТ ООО","Gorizont_10-03-2023_1",10,{"$f":"CONCATENATE(BD[[#This Row],[счф]],\" от \",TEXT(BD[[#This Row],[счф дата]], \"дд.ММ.гггг\"))","v":"352 от 10.03.2023"}]
["2023-03-10",11307,"Песок карьерный",18,"Джартыев","к555ва198","камаз","ШК5",null,"INS_10-03-23_5",1,null,null,null,310,352,"2023-03-10","Пер-пл","Новосаратовка",695,"2023-03-10",18,"ДК ГОРИЗОНТ ООО","Gorizont_10-03-2023_2",11,{"$f":"CONCATENATE(BD[[#This Row],[счф]],\" от \",TEXT(BD[[#This Row],[счф дата]], \"дд.ММ.гггг\"))","v":"352 от 10.03.2023"}]
["2023-03-10",11305,"Песок карьерный",18,"Джартыев","к555ва198","камаз","ШК5",null,"INS_10-03-23_5",2,null,null,null,310,352,"2023-03-10","Пер-пл","Новосаратовка",517,"2023-03-10",18,"ДК ГОРИЗОНТ ООО","Gorizont_10-03-2023_2",11,{"$f":"CONCATENATE(BD[[#This Row],[счф]],\" от \",TEXT(BD[[#This Row],[счф дата]], \"дд.ММ.гггг\"))","v":"352 от 10.03.2023"}]
["2023-03-10",11315,"Песок карьерный",18,"Джартыев","к555ва198","камаз","ШК5",null,"INS_10-03-23_5",3,null,null,null,310,352,"2023-03-10","Пер-пл","Новосаратовка",516,"2023-03-10",18,"ДК ГОРИЗОНТ ООО","Gorizont_10-03-2023_2",11,{"$f":"CONCATENATE(BD[[#This Row],[счф]],\" от \",TEXT(BD[[#This Row],[счф дата]], \"дд.ММ.гггг\"))","v":"352 от 10.03.2023"}]
["2023-03-10",11309,"Песок карьерный",18,"Джартыев","к555ва198","камаз","ШК5",null,"INS_10-03-23_5",4,null,null,null,310,352,"2023-03-10","Пер-пл","Новосаратовка",522,"2023-03-10",18,"ДК ГОРИЗОНТ ООО","Gorizont_10-03-2023_2",11,{"$f":"CONCATENATE(BD[[#This Row],[счф]],\" от \",TEXT(BD[[#This Row],[счф дата]], \"дд.ММ.гггг\"))","v":"352 от 10.03.2023"}]
["2023-03-10",24053,"Песок карьерный",18,"Тонку","в252уу147","камаз","ШК5",null,"INS_10-03-23_5",5,null,null,null,310,352,"2023-03-10","Пер-пл","Новосаратовка",515,"2023-03-10",18,"ДК ГОРИЗОНТ ООО","Gorizont_10-03-2023_2",12,{"$f":"CONCATENATE(BD[[#This Row],[счф]],\" от \",TEXT(BD[[#This Row],[счф дата]], \"дд.ММ.гггг\"))","v":"352 от 10.03.2023"}]

{"sheet":"Reestr_Документ","index":1,"n_rows":23,"n_cols":15,"rows_kept":23,"cut":false,"hidden":false,"merged":[[0,6,0,10],[2,0,2,11]]}
[null,null,null,null,null,"Приложение к документу поставки товаров(ТОРГ-12; счет-фактура; УПД) №","347 от 05.03.2023"]
[]
[{"$f":"CONCATENATE(\"Реестр транспотных накладных о поставке материалов ( страниц \", O5, \" )\")","v":"Реестр транспотных накладных о поставке материалов ( страниц 1 )"}]
[]
[null,"Поставщик : ",null,{"$f":"VLOOKUP(O9,Таблица4[#Data],2,FALSE)","v":"тест"},null,null,null,null,null,null,"кол-во ТН",{"$f":"ROWS(BD_2[№ п\\п])","v":14},null,"страниц",{"$f":"ROUNDUP((L5/43),0)","v":1}]
[null,null,null,null,null,null,null,null,null,null,"кол-во, м3",{"$f":"SUM(BD_2[кол-во, м3])","v":264},null,"копий",1]
[null,"Покупатель: ",null,null,null,null,null,null,null,null,"сумма, руб.",{"$f":"SUMPRODUCT(BD_2[кол-во, м3],BD_2[Цена за ЕД])","v":81840}]
[]
["№ п\\п","  ТН","Дата ТН","Наименование товара","кол-во, м3","Водитель","Автомобиль","ГРЗ","Цена за ЕД","Проект","Карьер","Материал",null,"кодПок",{"$f":"VLOOKUP(УпдДокНД,Таблица_UPD_nom_date[#All],2,FALSE)","v":"Пер-пл"}]
[1,24827,"2023-03-05","Песок карьерный",18,"РОТАРЬ","МЕРСЕДЕС","К179КТ198",310,"ШК5","Новосаратовка","ДК ГОРИЗОНТ ООО"]
[2,24999,"2023-03-05","Песок карьерный",18,"РОТАРЬ","МЕРСЕДЕС","К179КТ198",310,"ШК5","Новосаратовка","ДК ГОРИЗОНТ ООО",null,null,{"$f":"CONCATENATE(O9,\"_\",LEFT(УпдДокНД, SEARCH(\" \",УпдДокНД,1)-1))","v":"Пер-пл_347"}]
[3,24991,"2023-03-05","Песок карьерный",18,"АКБАРОВ","ВОЛЬВО","Х312ХН178",310,"ШК5","Новосаратовка","ДК ГОРИЗОНТ ООО",null,null,"Место сохранение файла"]
[4,12351,"2023-03-05","Песок карьерный",18,"АКБАРОВ","ВОЛЬВО","Х312ХН178",310,"ШК5","Новосаратовка","ДК ГОРИЗОНТ ООО",null,null,{"$f":"VLOOKUP(O9,Таблица4[#Data],3,FALSE)","v":"C:\\"}]
[5,24834,"2023-03-05","Песок карьерный",18,"СОЛОВЕЙ","МЕРСЕДЕС","К206ОЕ198",310,"ШК5","Новосаратовка","ДК ГОРИЗОНТ ООО"]
[6,24864,"2023-03-05","Песок карьерный",18,"СОЛОВЕЙ","МЕРСЕДЕС","К206ОЕ198",310,"ШК5","Новосаратовка","ДК ГОРИЗОНТ ООО"]
[7,24992,"2023-03-05","Песок карьерный",18,"СОЛОВЕЙ","МЕРСЕДЕС","К206ОЕ198",310,"ШК5","Новосаратовка","ДК ГОРИЗОНТ ООО"]
[8,24956,"2023-03-05","Песок карьерный",18,"СОЛОВЕЙ","МЕРСЕДЕС","К206ОЕ198",310,"ШК5","Новосаратовка","ДК ГОРИЗОНТ ООО"]
[9,24854,"2023-03-05","Песок карьерный",20,"ГОЛОБОРОДЬКО","МЕРСЕДЕС","К397ТХ198",310,"ШК5","Новосаратовка","ДК ГОРИЗОНТ ООО"]
[10,24848,"2023-03-05","Песок карьерный",20,"ГОЛОБОРОДЬКО","МЕРСЕДЕС","К397ТХ198",310,"ШК5","Новосаратовка","ДК ГОРИЗОНТ ООО"]
[11,24855,"2023-03-05","Песок карьерный",20,"ГОЛОБОРОДЬКО","МЕРСЕДЕС","К397ТХ198",310,"ШК5","Новосаратовка","ДК ГОРИЗОНТ ООО"]
[12,24934,"2023-03-05","Песок карьерный",20,"СЛАВИОГЛО","КАМАЗ","М738СР198",310,"ШК5","Новосаратовка","ДК ГОРИЗОНТ ООО"]
[13,24932,"2023-03-05","Песок карьерный",20,"СЛАВИОГЛО","КАМАЗ","М738СР198",310,"ШК5","Новосаратовка","ДК ГОРИЗОНТ ООО"]
[14,24828,"2023-03-05","Песок карьерный",20,"СЛАВИОГЛО","КАМАЗ","М738СР198",310,"ШК5","Новосаратовка","ДК ГОРИЗОНТ ООО"]

{"sheet":"TTN","index":2,"n_rows":56,"n_cols":117,"rows_kept":56,"cut":false,"hidden":true,"merged":[[4,0,4,27],[4,28,4,56],[4,58,5,114],[5,27,7,33],[5,34,7,56],[6,59,6,113],[7,59,7,113],[0,28,0,56],[1,28,1,56],[1,88,2,97],[1,98,2,113],[2,28,2,56],[3,28,3,30],[3,31,3,41],[3,43,3,44],[3,45,3,55],[8,27,10,33],[8,34,10,56],[8,59,10,113],[11,0,11,56],[11,59,11,113],[12,0,12,4],[12,5,12,40],[12,41,12,50],[12,51,12,56],[13,0,13,4],[13,5,13,40],[13,41,13,50],[13,51,13,56],[13,59,14,113],[14,0,14,4],[14,5,14,40],[14,41,14,50],[14,51,14,56],[15,0,15,4],[15,5,15,40],[15,41,15,50],[15,51,15,56],[15,59,15,113],[16,0,16,4],[16,5,16,40],[16,41,16,50],[16,51,16,56],[16,58,16,114],[19,0,19,56],[19,59,19,92],[19,95,19,113],[20,0,20,56],[21,0,21,56],[21,58,21,114],[17,0,17,4],[17,5,17,40],[17,41,17,50],[17,51,17,56],[17,59,18,92],[17,95,18,113],[18,0,18,4],[18,5,18,40],[18,41,18,50],[18,51,18,56],[25,0,25,56],[25,59,25,84],[25,87,25,113],[26,0,26,27],[26,28,26,56],[26,58,26,114],[23,0,23,56],[23,59,23,84],[23,87,23,113],[24,0,24,56],[24,59,24,84],[24,87,24,113],[27,0,28,27],[27,28,32,56],[27,58,27,114],[28,58,28,114],[29,1,29,26],[29,58,29,114],[30,58,30,114],[31,58,31,114],[32,1,32,26],[32,59,32,84],[32,87,32,113],[33,1,33,26],[33,59,33,84],[33,87,33,113],[34,1,34,13],[34,15,34,26],[34,28,35,31],[34,32,35,45],[34,59,34,84],[34,87,34,113],[35,1,35,13],[35,15,35,26],[35,59,35,84],[35,87,35,113],[36,1,36,26],[36,28,37,31],[36,32,37,45],[36,58,36,114],[37,1,37,26],[37,59,37,80],[39,1,39,13],[39,15,39,26],[39,59,39,80],[39,83,39,113],[40,59,40,80],[40,83,40,113],[37,83,37,113],[38,1,38,13],[38,15,38,26],[38,29,38,56],[38,59,38,80],[38,83,38,113],[45,19,45,26],[45,59,45,114],[46,59,47,85],[46,88,47,113],[48,0,48,27],[50,106,50,113],[41,59,41,80],[41,83,41,113],[42,19,42,26],[42,83,42,113],[43,59,43,113],[44,19,44,26],[44,59,44,113],[57,59,57,86],[57,87,57,101],[57,102,57,113],[53,58,53,114],[54,59,55,86],[54,87,55,101],[54,102,55,113],[55,0,55,27],[56,59,56,86],[56,87,56,101],[56,102,56,113]]}
[]
[null,null,null,null,null,null,null,null,null,null,null,null,null,null,null,null,null,null,null,null,null,null,null,null,null,null,null,null,null,null,null,null,null,null,null,null,null,null,null,null,null,null,null,null,null,null,null,null,null,null,null,null,null,null,null,null,null,null,null,null,null,null,null,null,null,null,null,null,null,null,null,null,null,null,null,null,null,null,null,null,null,null,null,null,null,null,null,null,"ПРОЕКТ",null,null,null,null,null,null,null,null,null,45085]
[null,null,null,null,null,null,null,null,null,null,null,null,null,null,null,null,null,null,null,null,null,null,null,null,null,null,null,null,"ТРАНСПОРТНАЯ НАКЛАДНАЯ",null,null,null,null,null,null,null,null,null,null,null,null,null,null,null,null,null,null,null,null,null,null,null,null,null,null,null,null,null,null,null,null,null,null,null,null,null,null,null,null,null,null,null,null,null,null,null,null,null,null,null,null,null,null,null,null,null,null,null,null,null,null,null,null,null,null,null,null,null,null,null,null,null,null,null,null,null,null,null,null,null,null,null,null,null,null,"ТН",123]
[null,null,null,null,null,null,null,null,null,null,null,null,null,null,null,null,null,null,null,null,null,null,null,null,null,null,null,null,"Дата",null,null,"2023-06-08",null,null,null,null,null,null,null,null,null,null,null,"№",null,45085,null,null,null,null,null,null,null,null,null,null,null,null,null,null,null,null,null,null,null,null,null,null,null,null,null,null,null,null,null,null,null,null,null,null,null,null,null,null,null,null,null,null,null,null,null,null,null,null,null,null,null,null,null,null,null,null,null,null,null,null,null,null,null,null,null,null,null,null,null,"Копий",1]
["1. Грузоотправитель (грузовладелец)",null,null,null,null,null,null,null,null,null,null,null,null,null,null,null,null,null,null,null,null,null,null,null,null,null,null,null,"2. Грузополучатель",null,null,null,null,null,null,null,null,null,null,null,null,null,null,null,null,null,null,null,null,null,null,null,null,null,null,null,null,null,"10. Перевозчик"]
[null,null,null,null,null,null,null,null,null,null,null,null,null,null,null,null,null,null,null,null,null,null,null,null,null,null,null,"Плательщик",null,null,null,null,null,null,45085]
[null,null,"ООО \"МПС-МАТЕРИАЛЫ\""]
[null,null," ИНН 7840462116, КПП 781101001,",null,null,null,null,null,null,null,null,null,null,null,null,null,null,null,null,null,null,null,null,null,null,null,null,null,null,null,null,null,null,null,null,null,null,null,null,null,null,null,null,null,null,null,null,null,null,null,null,null,null,null,null,null,null,null,null,"(фамилия, имя, отчество,  – для физического лица"]
[null,null,"193091, Санкт-Петербург, Октябрьская наб.,",null,null,null,null,null,null,null,null,null,null,null,null,null,null,null,null,null,null,null,null,null,null,null,null,"Грузополучатель",null,null,null,null,null,null,45085,null,null,null,null,null,null,null,null,null,null,null,null,null,null,null,null,null,null,null,null,null,null,null,null,45085]
[null,null,"дом № 6, литер М, помещение 10-Н (ч.п.11)"]
[null,null,"тел.:  +7 (812) 464 38 81"]
["3. Наименование груза",null,null,null,null,null,null,null,null,null,null,null,null,null,null,null,null,null,null,null,null,null,null,null,null,null,null,null,null,null,null,null,null,null,null,null,null,null,null,null,null,null,null,null,null,null,null,null,null,null,null,null,null,null,null,null,null,null,null,"(наименование  – для юридического лица)"]
["№",null,null,null,null,"Наименование",null,null,null,null,null,null,null,null,null,null,null,null,null,null,null,null,null,null,null,null,null,null,null,null,null,null,null,null,null,null,null,null,null,null,null,"Кол-во",null,null,null,null,null,null,null,null,null,"Ед.изм"]
[1,null,null,null,null,45085,null,null,null,null,null,null,null,null,null,null,null,null,null,null,null,null,null,null,null,null,null,null,null,null,null,null,null,null,null,null,null,null,null,null,null,45085,null,null,null,null,null,null,null,null,null,null,null,null,null,null,null,null,null,45085]
[]
[null,null,null,null,null,null,null,null,null,null,null,null,null,null,null,null,null,null,null,null,null,null,null,null,null,null,null,null,null,null,null,null,null,null,null,null,null,null,null,null,null,null,null,null,null,null,null,null,null,null,null,null,null,null,null,null,null,null,null,"(фамилия, имя, отчество,водителя)"]
[null,null,null,null,null,null,null,null,null,null,null,null,null,null,null,null,null,null,null,null,null,null,null,null,null,null,null,null,null,null,null,null,null,null,null,null,null,null,null,null,null,null,null,null,null,null,null,null,null,null,null,null,null,null,null,null,null,null,"11. Транспортное средство"]
[null,null,null,null,null,null,null,null,null,null,null,null,null,null,null,null,null,null,null,null,null,null,null,null,null,null,null,null,null,null,null,null,null,null,null,null,null,null,null,null,null,null,null,null,null,null,null,null,null,null,null,null,null,null,null,null,null,null,null,45085,null,null,null,null,null,null,null,null,null,null,null,null,null,null,null,null,null,null,null,null,null,null,null,null,null,null,null,null,null,null,null,null,null,null,null,45085]
[]
["4. Сопроводительные документы на груз",null,null,null,null,null,null,null,null,null,null,null,null,null,null,null,null,null,null,null,null,null,null,null,null,null,null,null,null,null,null,null,null,null,null,null,null,null,null,null,null,null,null,null,null,null,null,null,null,null,null,null,null,null,null,null,null,null,null,"(марка)",null,null,null,null,null,null,null,null,null,null,null,null,null,null,null,null,null,null,null,null,null,null,null,null,null,null,null,null,null,null,null,null,null,null,null,"(регистрационные номера)"]
[]
[null,null,null,null,null,null,null,null,null,null,null,null,null,null,null,null,null,null,null,null,null,null,null,null,null,null,null,null,null,null,null,null,null,null,null,null,null,null,null,null,null,null,null,null,null,null,null,null,null,null,null,null,null,null,null,null,null,null,"12. Оговорки и замечания перевозчика"]
[]
["5. Указания грузоотправителя",null,null,null,null,null,null,null,null,null,null,null,null,null,null,null,null,null,null,null,null,null,null,null,null,null,null,null,null,null,null,null,null,null,null,null,null,null,null,null,null,null,null,null,null,null,null,null,null,null,null,null,null,null,null,null,null,null,null,"(фактическое состояние груза, тары, упаковки, маркировки и опломбирования при приеме груза)",null,null,null,null,null,null,null,null,null,null,null,null,null,null,null,null,null,null,null,null,null,null,null,null,null,null,null,"(фактическое состояние груза, тары, упаковки, маркировки и опломбирования при сдаче груза)"]
[]
[null,null,null,null,null,null,null,null,null,null,null,null,null,null,null,null,null,null,null,null,null,null,null,null,null,null,null,null,null,null,null,null,null,null,null,null,null,null,null,null,null,null,null,null,null,null,null,null,null,null,null,null,null,null,null,null,null,null,null,"(изменение условий перевозки при движении)",null,null,null,null,null,null,null,null,null,null,null,null,null,null,null,null,null,null,null,null,null,null,null,null,null,null,null,"(изменение условий перевозки при выгрузке)"]
["6. Прием груза",null,null,null,null,null,null,null,null,null,null,null,null,null,null,null,null,null,null,null,null,null,null,null,null,null,null,null,"7. Сдача груза",null,null,null,null,null,null,null,null,null,null,null,null,null,null,null,null,null,null,null,null,null,null,null,null,null,null,null,null,null,"13. Прочие условия"]
[45085,null,null,null,null,null,null,null,null,null,null,null,null,null,null,null,null,null,null,null,null,null,null,null,null,null,null,null,45085]
[null,null,null,null,null,null,null,null,null,null,null,null,null,null,null,null,null,null,null,null,null,null,null,null,null,null,null,null,null,null,null,null,null,null,null,null,null,null,null,null,null,null,null,null,null,null,null,null,null,null,null,null,null,null,null,null,null,null,"(номер, дата и срок действия специального разрешения, установленный маршрут перевозки опасного, тяжеловесного или крупногабаритного груза)"]
[null,"(адрес места погрузки)"]
[null,null,null,null,null,null,null,null,null,null,null,null,null,null,null,null,null,null,null,null,null,null,null,null,null,null,null,null,null,null,null,null,null,null,null,null,null,null,null,null,null,null,null,null,null,null,null,null,null,null,null,null,null,null,null,null,null,null,"(режим труда и отдыха водителя в пути следования, сведения о коммерческих и иных актах)"]
[null,null,null,null,null,null,null,null,null,null,null,null,null,null,null,null,null,null,null,null,null,null,null,null,null,null,null,null,null,null,null,null,null,null,null,null,null,null,null,null,null,null,null,null,null,null,null,null,null,null,null,null,null,null,null,null,null,null,"14. Переадресовка"]
[]
[null,"(дата и время подачи транспортного средства под погрузку)",null,null,null,null,null,null,null,null,null,null,null,null,null,null,null,null,null,null,null,null,null,null,null,null,null,null,null,null,null,null,null,null,null,null,null,null,null,null,null,null,null,null,null,null,null,null,null,null,null,null,null,null,null,null,null,null,null,"(дата, форма переадресовки (устно или письменно))",null,null,null,null,null,null,null,null,null,null,null,null,null,null,null,null,null,null,null,null,null,null,null,null,null,null,null,"(адрес нового пункта выгрузки, дата и время подачи транспортного средства под выгрузку)"]
[null,null,null,null,null,null,null,null,null,null,null,null,null,null,null,null,null,null,null,null,null,null,null,null,null,null,null,null,"время прибытия",null,null,null,45085]
[null,"(фактические дата и время прибытия)",null,null,null,null,null,null,null,null,null,null,null,null,null,"(фактические дата и время убытия)",null,null,null,null,null,null,null,null,null,null,null,null,null,null,null,null,null,null,null,null,null,null,null,null,null,null,null,null,null,null,null,null,null,null,"подпись",null,null,null,null,null,null,null,null,"(сведения о лице, от которого получено указание на переадресовку (наименование, фамилия, имя, отчество и др.))",null,null,null,null,null,null,null,null,null,null,null,null,null,null,null,null,null,null,null,null,null,null,null,null,null,null,null,"(при изменении получателя груза – новое наименование грузополучателя и место его нахождения)"]
[null,null,null,null,null,null,null,null,null,null,null,null,null,null,null,null,null,null,null,null,null,null,null,null,null,null,null,null,"время убытия",null,null,null,45085,null,null,null,null,null,null,null,null,null,null,null,null,null,null,null,null,null,null,null,null,null,null,null,null,null,"15. Стоимость услуг перевозчика и порядок расчета провозной платы"]
[null,"(фактическое состояние груза, тары, упаковки, маркировки и опломбирования)",null,null,null,null,null,null,null,null,null,null,null,null,null,null,null,null,null,null,null,null,null,null,null,null,null,null,null,null,null,null,null,null,null,null,null,null,null,null,null,null,null,null,null,null,null,null,null,null,"подпись"]
[null,null,null,null,null,null,null,null,null,null,null,null,null,null,null,null,null,null,null,null,null,null,null,null,null,null,null,null,null,"Отметка о сдече груза",null,null,null,null,null,null,null,null,null,null,null,null,null,null,null,null,null,null,null,null,null,null,null,null,null,null,null,null,null,"(стоимость услуги в рублях, порядок (механизм) расчета (исчислений) платы)",null,null,null,null,null,null,null,null,null,null,null,null,null,null,null,null,null,null,null,null,null,null,null,"(расходы перевозчика и предъявляемые грузоотправителю платежи за проезд по платным автомобильным дорогам,"]
[null,"(масса груза)",null,null,null,null,null,null,null,null,null,null,null,null,null,"(количество грузовых мест)"]
[null,null,null,null,null,null,null,null,null,null,null,null,null,null,null,null,null,null,null,null,null,null,null,null,null,null,null,null,null,null,null,null,null,null,null,null,null,null,null,null,null,null,null,null,null,null,null,null,null,null,null,null,null,null,null,null,null,null,null,"(размер провозной платы (заполняется после окончания перевозки) в рублях)",null,null,null,null,null,null,null,null,null,null,null,null,null,null,null,null,null,null,null,null,null,null,null,"за перевозку опасных, тяжеловесных и крупногабаритных грузов, уплату таможенных пошлин и сборов,"]
[null,"Грузоотправитель:",null,null,null,null,null,null,null,null,null,null,null,null,null,null,null,null,null,"Красненков И.А."]
[null,null,null,null,null,null,null,null,null,null,null,null,null,null,null,null,null,null,null,null,null,null,null,null,null,null,null,null,null,null,null,null,null,null,null,null,null,null,null,null,null,null,null,null,null,null,null,null,null,null,null,null,null,null,null,null,null,null,null,null,null,null,null,null,null,null,null,null,null,null,null,null,null,null,null,null,null,null,null,null,null,null,null,"выполнение погрузо-разгрузочных работ, а также работ по промывке и дезинфекции транспортных средств)"]
[]
[null,"Водитель:",null,null,null,null,null,null,null,null,null,null,null,null,null,null,null,null,null,45085,null,null,null,null,null,null,null,null,null,null,null,null,null,null,null,null,null,null,null,null,null,null,null,null,null,null,null,null,null,null,null,null,null,null,null,null,null,null,null,"(полное наименование организации плательщика (грузоотправителя), адрес, банковские реквизиты организации плательщика (грузоотправителя))"]
[null,null,null,null,null,null,null,null,null,null,null,null,null,null,null,null,null,null,null,"/ФИО/",null,null,null,null,null,null,null,null,null,null,null,null,null,null,null,null,null,null,null,null,"подпись",null,null,null,null,null,null,null,"печать",null,null,null,null,null,null,null,null,null,null,"16. Дата составления, подписи сторон"]
[null,null,null,null,null,null,null,null,null,null,null,null,null,null,null,null,null,null,null,null,null,null,null,null,null,null,null,null,null,null,null,null,null,null,null,null,null,null,null,null,null,null,null,null,null,null,null,null,null,null,null,null,null,null,null,null,null,null,null,"ООО \"МПС-МАТЕРИАЛЫ\""]
[]
["8. Условия перевозки",null,null,null,null,null,null,null,null,null,null,null,null,null,null,null,null,null,null,null,null,null,null,null,null,null,null,null,null,null,null,null,null,null,null,null,null,null,null,null,null,null,null,null,null,null,null,null,null,null,null,null,null,null,null,null,null,null,null,null,null,"м.п.",null,null,null,null,null,null,null,null,null,null,null,null,null,null,null,null,null,null,null,null,null,null,null,null,null,null,null,null,"м.п."]
[]
[null,null,null,null,null,null,null,null,null,null,null,null,null,null,null,null,null,null,null,null,null,null,null,null,null,null,null,null,null,null,null,null,null,null,null,null,null,null,null,null,null,null,null,null,null,null,null,null,null,null,null,null,null,null,null,null,null,null,null,"Грузоотправитель:",null,null,null,null,null,null,null,null,null,null,null,null,null,null,null,null,null,null,"Красненков И.А.",null,null,null,null,null,null,null,null,null,"Водитель:",null,null,null,null,null,null,null,null,null,null,null,null,null,null,null,null,null,45085]
[]
[]
[null,null,null,null,null,null,null,null,null,null,null,null,null,null,null,null,null,null,null,null,null,null,null,null,null,null,null,null,null,null,null,null,null,null,null,null,null,null,null,null,null,null,null,null,null,null,null,null,null,null,null,null,null,null,null,null,null,null,"17. Отметки грузоотправителей, грузополучателей, перевозчиков"]
[null,null,null,null,null,null,null,null,null,null,null,null,null,null,null,null,null,null,null,null,null,null,null,null,null,null,null,null,null,null,null,null,null,null,null,null,null,null,null,null,null,null,null,null,null,null,null,null,null,null,null,null,null,null,null,null,null,null,null,"Краткое описание обстоятельств, послуживших основанием для отметки",null,null,null,null,null,null,null,null,null,null,null,null,null,null,null,null,null,null,null,null,null,null,null,null,null,null,null,"Расчет и размер штрафа",null,null,null,null,null,null,null,null,null,null,null,null,null,null,"Подпись, дата"]
["9. Информация о принятии заказа (заявки) к исполнению"]

{"sheet":"Helper","index":3,"n_rows":6,"n_cols":11,"rows_kept":6,"cut":false,"hidden":false,"merged":[]}
[]
["№+ДАТА_УПД","Перевозчик",null,"Код","Покупатель","Путь файла","Место нахождение",null,"Проект","Точка выгрузки","Путь файла"]
["345 от 04.03.2023","Пер-пл",null,"пер-пл","тест","C:\\"]
["347 от 05.03.2023","Пер-пл"]
["349 от 07.03.2023","Пер-пл"]
["352 от 10.03.2023","Пер-пл"]

{"sheet":"Лист3","index":4,"n_rows":0,"n_cols":0,"rows_kept":0,"cut":false,"hidden":false,"merged":[]}

{"sheet":"Лист2","index":5,"n_rows":0,"n_cols":0,"rows_kept":0,"cut":false,"hidden":true,"merged":[]}